bitfinex/quotes_SOLUSD_20240920
["timestamp","ask_amount","ask_price","bid_price","bid_amount"]
[1726804887524,22.8292496,145.0,144.99,77.27347]
[1726804887734,22.8292496,145.0,144.99,77.14798]
[1726804888034,22.8292496,145.0,144.99,76.897]
[1726804888440,22.8292496,145.0,144.99,77.27347]
[1726804888622,17.7268496,145.0,144.99,101.050354]
[1726804888829,17.7268496,145.0,144.99,77.27347]
[1726804889518,8.7593496,145.0,144.99,77.27347]
[1726804889723,4.9065496,145.0,144.99,77.27347]
[1726804890121,4.9065496,145.0,144.99,76.897]
[1726804890326,4.9065496,145.0,144.99,77.14798]
[1726804891142,1.0042496,145.0,144.99,77.14798]
[1726804891330,0.2578657,145.05,145.03,108.6085]
[1726804891644,203.62642661,145.04,145.03,128.85948]
[1726804892024,203.62642661,145.04,145.03,128.6085]
[1726804892225,203.62642661,145.04,145.03,175.204454]
[1726804892226,196.41902661,145.04,145.03,175.204454]
[1726804892422,155.15979644,145.04,145.03,175.204454]
[1726804892726,141.22769644,145.04,145.03,151.42757]
[1726804892916,140.96978479,145.04,145.03,151.42757]
[1726804893336,128.49998479,145.04,145.03,158.36257]
[1726804893646,0.15362665,145.08,145.03,158.36257]
[1726804893647,0.341329,145.1,145.09,50.0]
[1726804893852,0.0001,145.13,145.12,94.1179]
[1726804894155,0.494952,145.16,145.15,76.8894]
[1726804894447,0.494952,145.16,145.15,6.8894]
[1726804894762,0.494952,145.16,145.15,61.58748]
[1726804895240,0.494952,145.16,145.15,61.3365]
[1726804895419,0.494952,145.16,145.15,26.8894]
[1726804895619,0.494952,145.16,145.15,27.01489]
[1726804895943,0.494952,145.16,145.15,27.26587]
[1726804896653,0.494952,145.16,145.15,30.666284]
[1726804896822,0.494952,145.16,145.15,6.8894]
[1726804897022,0.494952,145.16,145.15,26.8894]
[1726804898042,0.494952,145.16,145.15,20.25098]
[1726804898425,0.494952,145.16,145.15,20.37647]
[1726804898841,0.494952,145.16,145.15,21.753371]
[1726804899041,0.494952,145.16,145.15,45.530255]
[1726804899243,0.494952,145.16,145.15,44.153354]
[1726804899447,0.494952,145.16,145.15,20.37647]
[1726804900656,0.494952,145.16,145.15,20.0]
[1726804900822,0.494952,145.16,145.15,20.37647]
[1726804901751,0.494952,145.16,145.15,20.0]
[1726804901925,0.494952,145.16,145.14,50.0]
[1726804902126,0.494952,145.16,145.14,56.8897]
[1726804903148,0.494952,145.16,145.14,50.0]
[1726804903445,0.494952,145.16,145.14,56.8897]
[1726804904126,0.494952,145.16,145.15,0.25098]
[1726804904440,0.494952,145.16,145.15,0.12549]
[1726804904951,0.494952,145.16,145.15,2.758963]
[1726804905446,0.494952,145.16,145.12,50.0]
[1726804906528,0.494952,145.16,145.1,50.0]
[1726804906850,0.494952,145.16,145.08,50.0]
[1726804907148,0.494952,145.16,145.06,56.935]
[1726804907324,0.494952,145.16,145.06,50.0]
[1726804907520,7.383852,145.16,145.06,50.0]
[1726804908149,0.494952,145.16,145.06,50.0]
[1726804908645,6.8895,145.15,145.06,50.0]
[1726804908852,0.494952,145.16,145.06,50.0]
[1726804909033,6.8899,145.14,145.06,50.0]
[1726804909552,6.8904,145.13,145.04,64.95446655]
[1726804909757,15.9226,145.12,145.04,56.935]
[1726804910049,15.9226,145.12,145.04,50.0]
[1726804910253,15.9226,145.12,145.04,56.8945]
[1726804910851,15.9226,145.12,145.04,56.935]
[1726804911063,15.9226,145.12,145.06,50.0]
[1726804911950,15.9226,145.12,145.07,6.935]
[1726804912443,15.9226,145.12,145.08,56.8927]
[1726804912639,15.9226,145.12,145.07,63.828]
[1726804913025,15.9226,145.12,145.09,50.0]
[1726804913226,6.5685,145.13,145.07,89.03729986]
[1726804913427,6.5685,145.13,145.09,50.0]
[1726804913645,6.5685,145.13,145.07,89.03729986]
[1726804913839,6.5685,145.13,145.09,6.8921]
[1726804914150,6.5685,145.13,145.08,56.8926]
[1726804914848,16.412352,145.16,145.13,50.0]
[1726804915040,16.412352,145.16,145.12,17.2266]
[1726804915243,16.412352,145.16,145.13,56.8903]
[1726804915551,0.494952,145.16,145.13,56.8903]
[1726804915849,0.494952,145.16,145.12,24.1616]
[1726804916361,0.494952,145.16,145.12,6.935]
[1726804916649,0.494952,145.16,145.14,6.8898]
[1726804916853,0.494952,145.16,145.15,50.0]
[1726804918856,0.494952,145.16,145.13,67.2256]
[1726804919149,0.494952,145.16,145.15,50.0]
[1726804920738,0.494952,145.16,145.14,6.935]
[1726804921053,0.494952,145.16,145.1,50.0]
[1726804921633,7.383852,145.16,145.08,50.0]
[1726804922136,0.494952,145.16,145.08,67.2307]
[1726804922333,0.494952,145.16,145.11,56.8911]
[1726804922839,0.494952,145.16,145.09,63.8268]
[1726804923027,0.494952,145.16,145.12,50.0]
[1726804923229,7.384052,145.16,145.08,67.2307]
[1726804923658,7.384052,145.16,145.08,50.0]
[1726804923828,29.1439,145.14,145.07,6.935]
[1726804924238,22.2539,145.14,145.07,6.935]
[1726804924436,29.1442,145.14,145.07,6.935]
[1726804924646,6.8905,145.13,145.06,50.0]
[1726804924850,22.2539,145.14,145.04,56.935]
[1726804925048,6.8913,145.11,145.04,6.935]
[1726804925352,0.48553012,145.11,145.01,17.2394]
[1726804925526,23.776884,145.13,145.0,50.0]
[1726804925527,6.8928,145.08,145.0,50.0]
[1726804925869,21.6076,145.06,145.01,1.37868178]
[1726804926029,21.6076,145.06,145.0,56.8964]
[1726804926224,21.6076,145.06,144.98,56.8971]
[1726804926425,21.6076,145.06,145.0,56.8965]
[1726804926844,21.6076,145.06,145.0,50.0]
[1726804927156,21.6076,145.06,144.99,6.935]
[1726804927454,28.5013,145.06,144.98,50.0]
[1726804928034,21.6076,145.06,144.98,56.8973]
[1726804928229,21.6076,145.06,144.99,6.8969]
[1726804928555,21.4706,145.1,145.02,50.0]
[1726804928855,21.4706,145.1,145.02,56.8955]
[1726804929025,21.4706,145.1,145.03,6.895]
[1726804929226,21.4706,145.1,145.02,56.935]
[1726804929437,21.4706,145.1,145.04,56.8945]
[1726804930035,21.4706,145.1,145.05,0.81872768]
[1726804930428,21.4706,145.1,145.06,50.0]
[1726804930632,0.494952,145.16,145.06,50.0]
[1726804930633,21.5483,145.15,145.06,50.0]
[1726804930847,6.8899,145.14,145.06,50.0]
[1726804931049,21.5483,145.15,145.06,56.935]
[1726804931354,21.5483,145.15,145.06,63.8286]
[1726804932033,21.5483,145.15,145.07,26.8931]
[1726804932229,21.5483,145.15,145.08,56.8926]
[1726804932659,21.5483,145.15,145.09,6.8922]
[1726804933037,0.494952,145.16,145.1,102.10229986]
[1726804933534,0.494952,145.16,145.11,6.935]
[1726804934257,6.8895,145.15,145.06,84.11264099]
[1726804934434,0.494952,145.16,145.1,6.8917]
[1726804934841,0.494952,145.16,145.11,6.8912]
[1726804935044,0.494952,145.16,145.14,6.8897]
[1726804935343,0.494952,145.16,145.11,17.2282]
[1726804935758,0.494952,145.16,145.1,20.0]
[1726804936134,0.494952,145.16,145.08,50.0]
[1726804936347,7.383952,145.16,145.08,50.0]
[1726804936561,0.494952,145.16,145.08,56.8926]
[1726804936746,0.494952,145.16,145.08,63.8276]
[1726804937245,0.494952,145.16,145.08,56.935]
[1726804937446,0.494952,145.16,145.09,6.8921]
[1726804937657,6.89,145.14,145.06,56.935]
[1726804937858,29.3359,145.15,145.06,63.8282]
[1726804938061,22.4465,145.15,145.04,108.24804488]
[1726804938238,24.26241412,145.14,145.02,50.0]
[1726804938444,23.776884,145.14,145.02,50.0]
[1726804938743,6.8917,145.11,145.02,56.935]
[1726804939143,7.37733012,145.1,145.01,13.831]
[1726804939346,6.892,145.1,145.02,6.935]
[1726804939559,23.902374,145.12,145.0,74.1371]
[1726804939560,0.12549,145.12,145.0,74.1371]
[1726804939861,21.4611,145.11,145.0,67.2407]
[1726804940066,21.4611,145.11,145.02,50.0]
[1726804940560,21.4611,145.11,145.03,49.33999986]
[1726804940733,21.4611,145.11,145.04,13.8292]
[1726804940937,21.4611,145.11,145.05,6.894]
[1726804941160,21.4611,145.11,145.05,67.2343]
[1726804941458,21.4611,145.11,145.07,6.8931]
[1726804941954,21.4611,145.11,145.06,6.8936]
[1726804942264,21.4611,145.11,145.07,7.74509777]
[1726804942442,21.4611,145.11,145.07,0.85199777]
[1726804942761,15.0631,145.11,145.08,17.2318]
[1726804942940,6.2925,145.15,145.09,70.0]
[1726804943261,6.2925,145.15,145.1,6.8917]
[1726804944135,6.2925,145.15,145.08,24.124]
[1726804945265,0.48553012,145.14,145.07,20.0]
[1726804945452,0.48553012,145.14,145.04,17.2354]
[1726804945660,23.902374,145.13,145.0,17.2404]
[1726804945862,6.8923,145.09,145.0,24.1369]
[1726804946157,16.29163012,145.12,145.0,17.2404]
[1726804946158,6.0595,145.08,145.0,17.2404]
[1726804946558,6.0595,145.08,145.02,67.2379]
[1726804946738,6.0595,145.08,145.05,6.8941]
[1726804946941,21.9443,145.12,145.06,0.40591399]
[1726804947135,21.9443,145.12,145.06,6.8932]
[1726804947339,21.9443,145.12,145.08,6.8925]
[1726804947557,15.8061,145.12,145.1,6.8917]
[1726804948048,6.1382,145.15,145.12,6.8903]
[1726804948238,16.097552,145.16,145.12,6.8903]
[1726804948567,16.097552,145.16,145.1,56.8914]
[1726804948864,16.097552,145.16,145.08,99.33389986]
[1726804949236,16.097552,145.16,145.08,24.1242]
[1726804949561,16.097552,145.16,145.08,17.2316]
[1726804949761,6.8894,145.15,145.06,56.8936]
[1726804949963,16.097552,145.16,145.06,6.8936]
[1726804950164,16.097552,145.16,145.05,17.2353]
[1726804950462,6.8899,145.14,145.05,17.2353]
[1726804950765,16.097552,145.16,145.05,17.2353]
[1726804951269,6.8904,145.13,145.05,24.1294]
[1726804951463,6.8908,145.13,145.04,6.8945]
[1726804951665,0.48553012,145.12,145.03,6.895]
[1726804951961,0.48553012,145.12,145.02,74.1342]
[1726804951962,6.8918,145.1,145.02,74.1342]
[1726804952169,6.8918,145.1,145.02,24.1342]
[1726804952366,15.2818,145.08,145.01,6.896]
[1726804952775,15.2818,145.08,145.02,6.8955]
[1726804953279,15.2818,145.08,145.02,56.8951]
[1726804953449,15.2818,145.08,145.03,6.8948]
[1726804953771,15.2818,145.08,145.02,50.0]
[1726804953772,15.2818,145.08,145.02,63.8305]
[1726804954078,15.2818,145.08,145.04,6.8945]
[1726804954241,15.2818,145.08,145.03,6.895]
[1726804955071,15.2818,145.08,145.02,13.8305]
[1726804955261,15.2818,145.08,145.02,6.935]
[1726804955849,22.66013012,145.08,145.01,17.2391]
[1726804956042,22.66013012,145.08,145.01,24.1351]
[1726804956043,15.2818,145.08,145.01,24.1351]
[1726804956353,15.2818,145.08,145.02,6.86541]
[1726804957059,24.027864,145.14,145.02,6.86541]
[1726804957060,16.3077,145.14,145.04,50.0]
[1726804957263,16.3077,145.14,145.06,50.0]
[1726804957669,16.3077,145.14,145.08,6.8926]
[1726804957856,23.1979,145.14,145.06,13.8286]
[1726804958052,16.3077,145.14,145.07,6.8931]
[1726804958448,23.1976,145.14,145.06,24.1684]
[1726804958649,6.8912,145.12,145.03,50.0]
[1726804958849,16.3077,145.14,145.05,6.894]
[1726804959167,6.8904,145.13,145.05,6.894]
[1726804959363,23.1976,145.14,145.06,6.8935]
[1726804959677,16.3077,145.14,145.07,51.37832415]
[1726804959845,16.3077,145.14,145.08,18.60881227]
[1726804960050,16.3077,145.14,145.08,24.1234]
[1726804960280,16.3077,145.14,145.08,17.2308]
[1726804960979,16.3077,145.14,145.06,20.0]
[1726804961275,16.3077,145.14,145.07,6.8931]
[1726804961972,16.3077,145.14,145.07,67.2322]
[1726804962363,16.3077,145.14,145.09,6.8918]
[1726804962560,16.3077,145.14,145.07,17.2322]
[1726804962759,16.3077,145.14,145.06,20.0]
[1726804962977,0.48553012,145.13,145.06,20.0]
[1726804963171,0.48553012,145.13,145.05,6.935]
[1726804963373,16.3077,145.14,145.04,49.33859986]
[1726804963872,16.3077,145.14,145.05,6.894]
[1726804964080,16.3077,145.14,145.04,24.1308]
[1726804964265,16.3077,145.14,145.04,17.2363]
[1726804964454,16.79323012,145.14,145.04,17.2363]
[1726804964655,6.8913,145.11,145.04,17.2363]
[1726804964875,6.8913,145.11,145.04,24.1308]
[1726804965376,0.48553012,145.1,145.01,18.44011628]
[1726804965670,6.8918,145.1,145.02,6.8954]
[1726804965877,6.8913,145.11,145.02,50.0]
[1726804966482,23.902374,145.13,145.01,24.1748]
[1726804966664,6.8922,145.1,145.01,24.1354]
[1726804966861,12.91,145.09,145.01,24.1354]
[1726804967063,12.91,145.09,145.02,1.37879898]
[1726804967380,6.8928,145.08,145.01,17.2398]
[1726804967580,6.0177,145.09,145.02,6.8955]
[1726804967764,6.0177,145.09,145.03,0.42409288]
[1726804967964,6.0177,145.09,145.01,17.2398]
[1726804968858,6.0177,145.09,145.04,6.8944]
[1726804969058,6.0177,145.09,145.01,17.2398]
[1726804969468,6.0177,145.09,145.05,6.8937]
[1726804970084,6.0177,145.09,145.07,6.8931]
[1726804970262,6.0177,145.09,145.06,17.2341]
[1726804970474,6.6394,145.13,145.07,6.8932]
[1726804970813,6.6394,145.13,145.08,6.8927]
[1726804970988,6.6394,145.13,145.09,6.8921]
[1726804971365,6.6394,145.13,145.06,67.2341]
[1726804971585,6.6394,145.13,145.11,6.8912]
[1726804971753,6.6394,145.13,145.08,67.2308]
[1726804971958,16.3077,145.14,145.1,17.2287]
[1726804972281,16.3077,145.14,145.1,67.2287]
[1726804972455,16.3077,145.14,145.1,17.2287]
[1726804972655,16.3077,145.14,145.1,24.12]
[1726804973365,16.3077,145.14,145.11,6.8912]
[1726804973685,16.3077,145.14,145.09,20.0]
[1726804974061,16.3077,145.14,145.09,37.2296]
[1726804974269,16.3077,145.14,145.11,6.8908]
[1726804975487,16.3077,145.14,145.12,6.8907]
[1726804975986,16.3077,145.14,145.09,37.2296]
[1726804976483,16.3077,145.14,145.12,6.8905]
[1726804977266,16.3077,145.14,145.1,6.8913]
[1726804978264,16.3077,145.14,145.09,17.2296]
[1726804978589,16.3077,145.14,145.09,24.1217]
[1726804979783,0.48553012,145.13,145.06,17.2339]
[1726804980091,7.37593012,145.13,145.06,24.1275]
[1726804980967,0.48553012,145.12,145.06,24.1275]
[1726804981164,16.3077,145.14,145.08,17.2311]
[1726804981883,16.3077,145.14,145.09,6.8918]
[1726804982191,16.3077,145.14,145.08,24.1238]
[1726804982370,23.1977,145.14,145.08,17.2311]
[1726804982771,16.3077,145.14,145.09,6.8918]
[1726804983392,16.3077,145.14,145.08,24.1237]
[1726804983692,0.48553012,145.13,145.05,17.2348]
[1726804983862,16.3077,145.14,145.05,24.1286]
[1726804984068,13.2158,145.11,145.03,6.895]
[1726804984285,6.3241,145.11,145.07,6.8931]
[1726804984585,6.3241,145.11,145.06,17.2334]
[1726804984772,6.3241,145.11,145.07,6.8927]
[1726804985378,6.3241,145.11,145.08,6.8926]
[1726804985687,0.479762,145.16,145.15,6.8894]
[1726804985991,0.479762,145.16,145.12,17.2259]
[1726804986491,0.479762,145.16,145.12,24.1163]
[1726804986679,0.479762,145.16,145.12,17.2259]
[1726804987479,0.479762,145.16,145.11,6.891]
[1726804987894,0.479762,145.16,145.1,6.8917]
[1726804988188,0.48553012,145.15,145.09,24.1227]
[1726804988383,0.479762,145.16,145.09,24.1223]
[1726804988784,0.479762,145.16,145.1,6.8916]
[1726804989269,6.8894,145.15,145.07,50.0]
[1726804989590,6.8894,145.15,145.06,37.538786]
[1726804989893,7.85419212,145.16,145.08,6.8926]
[1726804990091,0.479762,145.16,145.08,6.8927]
[1726804990296,7.368662,145.16,145.08,6.8927]
[1726804990804,0.48553012,145.15,145.06,24.1278]
[1726804990988,15.0712,145.14,145.06,24.1278]
[1726804991199,15.0712,145.14,145.08,6.8923]
[1726804991771,15.0712,145.14,145.06,17.2342]
[1726804991972,21.9613,145.14,145.06,24.1274]
[1726804992178,21.9611,145.14,145.07,6.8931]
[1726804992387,15.0712,145.14,145.07,6.8931]
[1726804992687,15.0712,145.14,145.08,8.270691]
[1726804992875,15.0712,145.14,145.09,6.8922]
[1726804993389,15.0712,145.14,145.07,6.893]
[1726804994499,7.01693012,145.13,145.03,1.19977295]
[1726804994670,6.8908,145.12,145.04,6.8943]
[1726804994977,6.5314,145.13,145.04,17.2354]
[1726804995178,6.5314,145.13,145.07,6.8929]
[1726804995375,6.5314,145.13,145.06,6.8936]
[1726804995882,13.4218,145.13,145.04,17.2354]
[1726804996085,6.8917,145.11,145.04,17.2354]
[1726804996271,13.422,145.13,145.05,6.8941]
[1726804996672,6.5314,145.13,145.04,17.2354]
[1726804996897,6.5314,145.13,145.07,6.8931]
[1726804997394,0.48553012,145.12,145.04,24.1296]
[1726804997600,13.4218,145.13,145.05,6.8937]
[1726804998100,6.5314,145.13,145.06,6.8936]
[1726804998399,13.4218,145.13,145.05,6.8941]
[1726804998777,6.5314,145.13,145.09,19.98186526]
[1726804998983,15.0712,145.14,145.12,6.8908]
[1726804999176,15.0712,145.14,145.13,6.8903]
[1726804999487,6.598462,145.16,145.13,6.8903]
[1726804999677,6.598462,145.16,145.14,6.8898]
[1726804999882,6.598462,145.16,145.12,6.8904]
[1726805000275,6.598462,145.16,145.11,17.2281]
[1726805000485,0.479762,145.16,145.14,17.2246]
[1726805001495,0.479762,145.16,145.15,46.87126526]
[1726805001801,0.479762,145.16,145.15,53.80626526]
[1726805002095,0.479762,145.16,145.15,26.8894]
[1726805002487,0.479762,145.16,145.15,60.18153579]
[1726805002696,0.479762,145.16,145.15,58.9391]
[1726805002892,0.479762,145.16,145.15,58.81361]
[1726805003476,0.479762,145.16,145.15,20.0]
[1726805003887,0.479762,145.16,145.15,50.917264]
[1726805004381,0.479762,145.16,145.15,26.8894]
[1726805004792,0.479762,145.16,145.15,28.2666801]
[1726805005180,0.479762,145.16,145.15,60.3163801]
[1726805005417,0.479762,145.16,145.15,82.966964]
[1726805005582,0.479762,145.16,145.15,58.9391]
[1726805005782,0.479762,145.16,145.15,58.81361]
[1726805006105,0.479762,145.16,145.15,26.8894]
[1726805006985,0.479762,145.16,145.15,50.917264]
[1726805007186,0.479762,145.16,145.15,27.01489]
[1726805007401,0.479762,145.16,145.15,26.8894]
[1726805008592,0.3076958,145.21,145.2,24.23009]
[1726805008889,0.3076958,145.21,145.2,44.23009]
[1726805009081,0.3076958,145.21,145.2,24.1046]
[1726805009799,0.3076958,145.21,145.2,17.2176]
[1726805010714,0.3076958,145.21,145.17,56.888]
[1726805011203,0.3076958,145.21,145.17,50.0]
[1726805011593,0.3076958,145.21,145.16,17.2217]
[1726805012805,0.3076958,145.21,145.16,24.1106]
[1726805013203,0.3076958,145.21,145.16,17.2217]
[1726805013597,0.3076958,145.21,145.12,17.2265]
[1726805013905,6.888,145.18,145.09,50.0]
[1726805014086,6.8886,145.17,145.09,56.8921]
[1726805014291,6.8886,145.17,145.07,77.70318978]
[1726805014292,0.48553012,145.16,145.07,1.1996196]
[1726805014490,0.0629994,145.17,145.07,1.1996196]
[1726805014491,6.4695,145.15,145.07,50.0]
[1726805014695,6.4695,145.15,145.07,17.2323]
[1726805015010,6.4695,145.15,145.07,67.2323]
[1726805015488,6.4695,145.15,145.1,6.8916]
[1726805016899,6.4695,145.15,145.09,6.8922]
[1726805017410,6.4695,145.15,145.08,20.0]
[1726805017585,13.3589,145.15,145.08,20.0]
[1726805018486,6.4695,145.15,145.08,20.0]
[1726805018900,13.3589,145.15,145.08,20.0]
[1726805019285,6.4695,145.15,145.08,26.8927]
[1726805019492,6.4695,145.15,145.08,70.0]
[1726805019895,6.4695,145.15,145.08,50.0]
[1726805020123,6.4695,145.15,145.09,6.892]
[1726805020915,0.0629994,145.17,145.12,6.8904]
[1726805021087,0.0629994,145.17,145.13,17.2251]
[1726805022187,0.0629994,145.17,145.13,24.1153]
[1726805022387,0.0629994,145.17,145.14,6.8897]
[1726805022584,0.0629994,145.17,145.15,50.0]
[1726805023011,0.0629994,145.17,145.14,6.8894]
[1726805023814,0.0629994,145.17,145.15,6.8893]
[1726805024389,0.0629994,145.17,145.13,17.2251]
[1726805024589,0.0629994,145.17,145.13,24.1154]
[1726805025517,0.0629994,145.17,145.14,6.8898]
[1726805025709,0.0629994,145.17,145.13,17.2251]
[1726805025710,0.0629994,145.17,145.13,67.2251]
[1726805026088,0.0629994,145.17,145.15,50.0]
[1726805026599,0.0629994,145.17,145.15,6.8893]
[1726805027109,0.0629994,145.17,145.13,74.1241]
[1726805027313,0.0629994,145.17,145.14,20.0]
[1726805027708,0.0629994,145.17,145.16,24.1112]
[1726805027915,0.0629994,145.17,145.16,44.1112]
[1726805029193,0.0629994,145.17,145.16,37.2223]
[1726805029398,0.0629994,145.17,145.16,44.1112]
[1726805029623,0.0629994,145.17,145.16,37.2223]
[1726805029814,0.0629994,145.17,145.16,44.1112]
[1726805030841,0.0629994,145.17,145.16,44.23669]
[1726805031127,0.0629994,145.17,145.16,44.1112]
[1726805031422,0.0629994,145.17,145.12,67.226]
[1726805031624,0.0629994,145.17,145.13,6.8902]
[1726805031813,0.0629994,145.17,145.14,6.8898]
[1726805032127,0.0629994,145.17,145.15,24.1128]
[1726805032522,0.0629994,145.17,145.15,17.2235]
[1726805033229,0.0629994,145.17,145.12,17.227]
[1726805033412,15.6844994,145.17,145.12,17.227]
[1726805033731,15.6844994,145.17,145.12,24.1176]
[1726805034208,15.6844994,145.17,145.13,6.8903]
[1726805035203,15.6844994,145.17,145.14,6.8895]
[1726805035404,0.0629994,145.17,145.14,6.8898]
[1726805036113,0.0629994,145.17,145.14,74.113]
[1726805036424,0.0629994,145.17,145.14,24.113]
[1726805037423,0.0629994,145.17,145.16,76.8889]
[1726805038007,0.0629994,145.17,145.16,77.01439]
[1726805038210,0.0629994,145.17,145.16,76.8889]
[1726805038421,0.0629994,145.17,145.16,78.26615094]
[1726805038733,0.0629994,145.17,145.16,120.99767678]
[1726805039031,0.0629994,145.17,145.16,96.84432278]
[1726805039229,0.0629994,145.17,145.16,76.8889]
[1726805039826,0.0629994,145.17,145.16,56.8889]
[1726805040731,0.0629994,145.17,145.12,58.96392584]
[1726805040929,0.0629994,145.17,145.11,24.1188]
[1726805041144,0.0629994,145.17,145.12,6.8908]
[1726805041727,0.0629994,145.17,145.11,26.19192584]
[1726805041921,0.0629994,145.17,145.11,8.96392584]
[1726805042233,6.0198,145.15,145.06,65.85712584]
[1726805042439,12.9095,145.15,145.07,8.96392584]
[1726805042636,6.0198,145.15,145.08,50.0]
[1726805042810,6.0198,145.15,145.08,58.96392584]
[1726805043010,6.8903,145.14,145.08,8.96392584]
[1726805043210,12.9092,145.15,145.08,8.96392584]
[1726805043411,6.8909,145.12,145.07,17.2319]
[1726805043608,6.8908,145.12,145.06,6.8936]
[1726805043838,6.8903,145.13,145.06,6.8936]
[1726805044044,0.48553012,145.12,145.05,0.1960238]
[1726805044219,6.8924,145.09,145.05,0.1960238]
[1726805044539,15.3074,145.07,145.05,0.1960238]
[1726805048627,15.6713,145.1,145.06,6.8936]
[1726805049841,15.6713,145.1,145.05,17.4310238]
[1726805050335,6.4078,145.12,145.07,31.9470849]
[1726805050556,15.924,145.14,145.09,50.0]
[1726805050921,15.924,145.14,145.11,6.8911]
[1726805051120,15.924,145.14,145.09,50.0]
[1726805051329,6.5974994,145.16,145.12,6.8908]
[1726805051541,6.5974994,145.16,145.13,6.8903]
[1726805051844,0.0629994,145.16,145.11,74.1195]
[1726805052015,0.0629994,145.16,145.11,24.1195]
[1726805052220,6.8895,145.15,145.07,99.3046749]
[1726805052419,6.8895,145.15,145.07,67.35759]
[1726805053249,6.8899,145.14,145.08,6.8927]
[1726805053624,0.0629994,145.16,145.09,50.0]
[1726805054033,0.0629994,145.16,145.1,17.2294]
[1726805054543,0.0629994,145.16,145.13,17.2257]
[1726805055038,0.0629994,145.16,145.14,6.8898]
[1726805055247,0.0629994,145.16,145.15,6.8894]
[1726805055433,0.0629994,145.16,145.14,6.8896]
[1726805056328,0.0629994,145.16,145.13,24.116]
[1726805056729,0.0629994,145.16,145.13,17.2257]
[1726805057254,0.0629994,145.16,145.11,6.8912]
[1726805058143,0.0629994,145.16,145.12,6.8908]
[1726805058361,6.9519994,145.16,145.1,17.2294]
[1726805058642,6.9519994,145.16,145.11,6.8912]
[1726805058826,0.0629994,145.16,145.11,6.8912]
[1726805059233,6.9520994,145.16,145.11,6.8912]
[1726805059433,0.0629994,145.16,145.11,6.8912]
[1726805059644,6.9518994,145.16,145.11,6.8912]
[1726805059948,0.0629994,145.16,145.11,6.8912]
[1726805060248,0.0629994,145.16,145.12,6.8907]
[1726805060550,0.0629994,145.16,145.11,50.0]
[1726805061026,6.9518994,145.16,145.11,56.8912]
[1726805061228,0.0629994,145.16,145.12,6.8908]
[1726805061525,0.0629994,145.16,145.12,17.226]
[1726805061743,0.0629994,145.16,145.13,51.37157258]
[1726805061924,0.0629994,145.16,145.15,6.8894]
[1726805062235,0.0629994,145.16,145.14,17.2235]
[1726805062623,0.0629994,145.16,145.14,24.1132]
[1726805062827,0.0629994,145.16,145.14,17.2235]
[1726805064562,0.0629994,145.16,145.15,6.8894]
[1726805065250,0.0629994,145.16,145.15,27.01489]
[1726805065636,0.0629994,145.16,145.15,59.31908857]
[1726805065844,0.2590232,145.2,145.19,24.1063]
[1726805066038,0.2590232,145.2,145.19,25.48328309]
[1726805066232,0.2590232,145.2,145.18,50.0]
[1726805066652,0.2590232,145.2,145.19,6.8875]
[1726805066861,0.2590232,145.2,145.19,26.8875]
[1726805067163,0.2590232,145.2,145.19,27.01299]
[1726805067541,0.2590232,145.2,145.19,50.915364]
[1726805067739,0.2590232,145.2,145.19,51.040854]
[1726805067945,0.2590232,145.2,145.19,27.01299]
[1726805069732,0.2590232,145.2,145.19,51.040854]
[1726805071249,0.2590232,145.2,145.19,50.915364]
[1726805071449,0.2590232,145.2,145.19,51.040854]
[1726805073460,0.2590232,145.2,145.19,50.789874]
[1726805074249,0.2590232,145.2,145.18,74.1181]